bitfinex-derivatives/quotes_BTCF0:USTF0_20260214
["timestamp","ask_amount","ask_price","bid_price","bid_amount"]
[1771071631069,0.014206,70429.0,70414.0,0.01428]
[1771071631070,0.43669593,70436.0,70416.0,0.45978288]
[1771071631268,0.45090193,70432.0,70421.0,0.014208]
[1771071631464,0.01428,70431.0,70423.0,0.014207]
[1771071632777,0.43669593,70432.0,70424.0,0.014207]
[1771071632978,0.43669593,70436.0,70426.0,0.014207]
[1771071633167,0.59309593,70435.0,70422.0,0.014207]
[1771071633371,0.43669593,70434.0,70424.0,0.014207]
[1771071633976,0.45090093,70433.0,70422.0,0.014207]
[1771071634275,0.45097593,70432.0,70423.0,0.014207]
[1771071634474,0.01428,70431.0,70423.0,0.014207]
[1771071634673,0.45097593,70431.0,70420.0,0.014208]
[1771071634969,0.45090193,70430.0,70420.0,0.014208]
[1771071635676,0.43669593,70430.0,70423.0,0.014207]
[1771071636275,0.01428,70431.0,70423.0,0.014207]
[1771071637680,0.43669593,70426.0,70417.0,0.01428]
[1771071637977,0.45097593,70425.0,70417.0,0.01428]
[1771071638679,0.45097593,70425.0,70417.0,0.028488]
[1771071639578,0.45097593,70425.0,70418.0,0.014208]
[1771071639775,0.43669593,70421.0,70406.0,0.014211]
[1771071639981,0.43669593,70418.0,70408.0,0.01428]
[1771071640177,0.43669593,70418.0,70412.0,0.014209]
[1771071640376,0.43669593,70418.0,70410.0,0.01421]
[1771071640881,0.43669593,70418.0,70412.0,0.014209]
[1771071641182,0.45094595,70413.0,70404.0,0.01428]
[1771071641377,0.46522595,70413.0,70406.0,0.014211]
[1771071641582,0.46522595,70413.0,70405.0,0.014211]
[1771071641583,0.47943495,70413.0,70405.0,0.014211]
[1771071641889,0.47943495,70413.0,70404.0,0.01428]
[1771071642075,0.47943495,70413.0,70406.0,0.014211]
[1771071642381,0.01428,70417.0,70405.0,0.014211]
[1771071642682,0.01428,70417.0,70413.0,0.014209]
[1771071642885,0.45094595,70424.0,70417.0,0.014208]
[1771071643181,0.1564,70423.0,70415.0,0.014209]
[1771071643869,0.170607,70423.0,70415.0,0.028418]
[1771071644070,0.170607,70423.0,70415.0,0.014209]
[1771071644273,0.62155295,70423.0,70415.0,0.014209]
[1771071644477,0.46515395,70420.0,70411.0,0.01421]
[1771071644781,0.45094595,70418.0,70411.0,0.01421]
[1771071645770,0.01428,70419.0,70412.0,0.014209]
[1771071645976,0.01428,70419.0,70414.0,0.014209]
[1771071647182,0.46522595,70419.0,70411.0,0.01421]
[1771071647383,0.46522595,70419.0,70412.0,0.014209]
[1771071647583,0.14212,70423.0,70418.0,0.014208]
[1771071647875,0.01428,70422.0,70419.0,0.014208]
[1771071648080,0.01142138,70422.0,70418.0,0.014208]
[1771071648383,0.01142138,70422.0,70416.0,0.014208]
[1771071648584,0.01142138,70422.0,70418.0,0.014208]
[1771071649082,0.01142138,70422.0,70417.0,0.014208]
[1771071651383,0.01142138,70422.0,70418.0,0.014208]
[1771071651584,0.01142138,70422.0,70417.0,0.014208]
[1771071652083,0.01142138,70422.0,70416.0,0.014209]
[1771071653684,0.01142138,70422.0,70417.0,0.014208]
[1771071654485,0.01428,70422.0,70418.0,0.014208]
[1771071654881,0.01428,70422.0,70419.0,0.014208]
[1771071655087,0.01428,70426.0,70421.0,0.014207]
[1771071655474,0.01428,70426.0,70421.0,0.014208]
[1771071656486,0.01428,70426.0,70420.0,0.014208]
[1771071657492,0.01428,70426.0,70419.0,0.014208]
[1771071657782,0.01428,70426.0,70420.0,0.014208]
[1771071658180,0.01428,70426.0,70419.0,0.014208]
[1771071658884,0.01428,70426.0,70418.0,0.014208]
[1771071659586,0.01428,70426.0,70419.0,0.014208]
[1771071660282,0.01428,70426.0,70416.0,0.01428]
[1771071660487,0.45094595,70424.0,70416.0,0.014208]
[1771071660687,0.46522595,70423.0,70417.0,0.014208]
[1771071660987,0.01428,70423.0,70417.0,0.014208]
[1771071662180,0.01428,70423.0,70413.0,0.01428]
[1771071662384,0.44419707,70423.0,70414.0,0.014209]
[1771071662586,0.44419707,70423.0,70413.0,0.01428]
[1771071662791,0.42991707,70420.0,70410.0,0.01421]
[1771071662983,0.42991707,70419.0,70410.0,0.02849]
[1771071663182,0.42991707,70419.0,70411.0,0.01421]
[1771071664081,0.42991707,70419.0,70412.0,0.014209]
[1771071664377,0.42991707,70419.0,70411.0,0.01421]
[1771071664783,0.42991707,70419.0,70410.0,0.02849]
[1771071665189,0.44412507,70419.0,70404.0,0.014211]
[1771071665485,0.42991707,70417.0,70408.0,0.01421]
[1771071665683,0.42991707,70417.0,70407.0,0.01421]
[1771071665684,0.44419707,70416.0,70410.0,0.02842]
[1771071665884,0.01428,70415.0,70408.0,0.01421]
[1771071667285,0.01428,70415.0,70407.0,0.01421]
[1771071667791,0.01428,70415.0,70408.0,0.01421]
[1771071668494,0.01428,70415.0,70411.0,0.01421]
[1771071668691,0.01428,70415.0,70407.0,0.01421]
[1771071669398,0.01428,70415.0,70411.0,0.01421]
[1771071669597,0.01428,70415.0,70409.0,0.01421]
[1771071669799,0.01428,70415.0,70411.0,0.01421]
[1771071669990,0.014208,70421.0,70413.0,0.014209]
[1771071670495,0.1564,70420.0,70413.0,0.014209]
[1771071670692,0.01428,70419.0,70418.0,0.014208]
[1771071670998,0.01428,70420.0,70418.0,0.014208]
[1771071671194,0.014206,70430.0,70420.0,0.014208]
[1771071671393,0.1564,70429.0,70422.0,0.014207]
[1771071671589,0.1564,70429.0,70420.0,0.014208]
[1771071671590,0.1564,70429.0,70420.0,0.028416]
[1771071671795,0.170606,70429.0,70420.0,0.014208]
[1771071672098,0.014206,70427.0,70418.0,0.014208]
[1771071672298,0.01428,70426.0,70420.0,0.014208]
[1771071672499,0.01428,70426.0,70419.0,0.014208]
[1771071673995,0.01428,70426.0,70420.0,0.014208]
[1771071674197,0.01428,70425.0,70422.0,0.014207]
[1771071674397,0.00013996,70425.0,70422.0,0.028414]
[1771071674603,0.00013996,70425.0,70420.0,0.014208]
[1771071674797,0.00013996,70425.0,70420.0,0.028416]
[1771071675806,0.00013996,70425.0,70420.0,0.014208]
[1771071676208,0.00013996,70425.0,70421.0,0.014207]
[1771071676508,0.00013996,70425.0,70423.0,0.014207]
[1771071676707,0.00013996,70425.0,70421.0,0.014208]
[1771071677299,0.00013996,70425.0,70420.0,0.014208]
[1771071677300,0.01428,70433.0,70428.0,0.014206]
[1771071677501,0.01428,70437.0,70429.0,0.014206]
[1771071677705,0.01428,70436.0,70433.0,0.014205]
[1771071678208,0.01428,70436.0,70432.0,0.014205]
[1771071678407,0.156323,70442.0,70432.0,0.014205]
[1771071678408,0.01428,70435.0,70432.0,0.014205]
[1771071678608,0.01428,70435.0,70433.0,0.014205]
[1771071679004,0.14212,70440.0,70433.0,0.014205]
[1771071679208,0.01428,70439.0,70433.0,0.014205]
[1771071679908,3.8e-07,70438.0,70436.0,0.014204]
[1771071680100,0.01428,70438.0,70436.0,0.014204]
[1771071680803,0.01428,70440.0,70434.0,0.014205]
[1771071681708,0.01428,70439.0,70436.0,0.014205]
[1771071682511,0.01428,70439.0,70437.0,0.014204]
[1771071682707,0.01428,70439.0,70431.0,0.014205]
[1771071682708,0.01428,70443.0,70440.0,0.014204]
[1771071683011,0.01428,70443.0,70439.0,0.014204]
[1771071684708,0.01428,70444.0,70439.0,0.014204]
[1771071685611,0.01428,70444.0,70438.0,0.014204]
[1771071686209,0.01428,70444.0,70439.0,0.014204]
[1771071689316,0.01428,70444.0,70438.0,0.014204]
[1771071690917,0.014202,70450.0,70439.0,0.014204]
[1771071691119,0.15636,70449.0,70439.0,0.014204]
[1771071691516,0.15636,70449.0,70440.0,0.014204]
[1771071692514,0.15636,70449.0,70439.0,0.014204]
[1771071692718,0.15636,70449.0,70438.0,0.014204]
[1771071692914,0.15636,70449.0,70438.0,0.028408]
[1771071693916,0.15636,70449.0,70438.0,0.014204]
[1771071694220,0.014202,70450.0,70438.0,0.014204]
[1771071694421,0.15636,70449.0,70438.0,0.014204]
[1771071697018,0.15636,70449.0,70440.0,0.014204]
[1771071697221,0.15475546,70449.0,70440.0,0.014204]
[1771071697420,0.15475546,70449.0,70440.0,0.028408]
[1771071697923,0.48510994,70452.0,70440.0,0.014204]
[1771071698119,0.15636,70451.0,70440.0,0.014204]
[1771071699422,0.64147094,70451.0,70440.0,0.014204]
[1771071699619,0.62726894,70451.0,70440.0,0.014204]
[1771071700524,0.62726894,70451.0,70439.0,0.014204]
[1771071701328,0.01428,70456.0,70440.0,0.014204]
[1771071701716,0.47885468,70457.0,70444.0,0.014203]
[1771071702023,0.170561,70456.0,70441.0,0.014203]
[1771071702224,0.014201,70455.0,70442.0,0.014203]
[1771071702433,0.014201,70452.0,70440.0,0.014204]
[1771071702631,0.01428,70451.0,70440.0,0.014204]
[1771071703429,0.01428,70451.0,70443.0,0.014203]
[1771071703722,0.01428,70452.0,70448.0,0.014202]
[1771071704627,0.01428,70452.0,70447.0,0.014202]
[1771071705731,0.46465368,70467.0,70448.0,0.01428]
[1771071705934,0.62101368,70466.0,70456.0,0.0142]
[1771071706230,0.46465368,70465.0,70456.0,0.0142]
[1771071706426,0.01428,70464.0,70456.0,0.0142]
[1771071706621,0.014198,70469.0,70456.0,0.0142]
[1771071706622,0.47885168,70469.0,70456.0,0.0142]
[1771071706830,0.170558,70468.0,70457.0,0.0142]
[1771071707025,0.014198,70467.0,70456.0,0.014201]
[1771071707732,0.47885168,70467.0,70455.0,0.014201]
[1771071709429,0.46465368,70467.0,70455.0,0.014201]
[1771071710017,0.46465368,70467.0,70455.0,0.028402]
[1771071710221,0.46465368,70467.0,70455.0,0.014201]
[1771071713335,0.170558,70468.0,70455.0,0.014201]
[1771071713632,0.62101368,70468.0,70455.0,0.014201]
[1771071714527,0.62101368,70468.0,70453.0,0.014201]
[1771071714528,0.46465368,70465.0,70453.0,0.01428]
[1771071714730,0.46465368,70463.0,70453.0,0.028481]
[1771071714931,0.47893368,70463.0,70453.0,0.014201]
[1771071715835,0.47893368,70463.0,70452.0,0.014201]
[1771071716429,0.47893368,70463.0,70453.0,0.014201]
[1771071717628,0.01428,70463.0,70450.0,0.45335869]
[1771071717825,0.01428,70462.0,70449.0,0.15632]
[1771071718130,0.01428,70462.0,70455.0,0.014201]
[1771071719034,0.62093168,70468.0,70461.0,0.014199]
[1771071719035,0.14208,70468.0,70461.0,0.014199]
[1771071719234,0.46465368,70472.0,70463.0,0.014199]
[1771071719439,0.2004,70480.0,70473.0,0.014197]
[1771071719440,0.14204,70480.0,70473.0,0.014197]
[1771071719738,0.01428,70479.0,70474.0,0.014197]
[1771071719938,0.014194,70489.0,70474.0,0.014197]
[1771071719939,0.45201695,70489.0,70474.0,0.014197]
[1771071720136,0.014194,70490.0,70478.0,0.014196]
[1771071720330,0.4490505,70483.0,70468.0,0.014198]
[1771071720532,0.4490505,70483.0,70454.0,0.014201]
[1771071720533,0.4490505,70476.0,70465.0,0.156239]
[1771071720842,0.01428,70479.0,70469.0,0.014198]
[1771071721140,0.01428,70482.0,70475.0,0.014197]
[1771071721826,0.014194,70488.0,70477.0,0.014196]
[1771071722026,0.01428,70487.0,70478.0,0.014196]
[1771071722435,0.47772352,70487.0,70475.0,0.15632]
[1771071722640,0.014196,70482.0,70475.0,0.15632]
[1771071722940,0.014196,70481.0,70475.0,0.01428]
[1771071723143,0.014195,70483.0,70475.0,0.01428]
[1771071723345,0.028475,70483.0,70475.0,0.01428]
[1771071723733,0.01428,70483.0,70475.0,0.01428]
[1771071723938,0.01428,70483.0,70476.0,0.014197]
[1771071724241,0.01428,70483.0,70475.0,0.028477]
[1771071725143,0.028475,70483.0,70475.0,0.01428]
[1771071725345,0.014195,70484.0,70475.0,0.01428]
[1771071725646,0.028475,70484.0,70475.0,0.01428]
[1771071725834,0.014195,70483.0,70475.0,0.01428]
[1771071726241,0.028475,70484.0,70475.0,0.01428]
[1771071726945,0.014195,70484.0,70475.0,0.01428]
[1771071727145,0.028475,70484.0,70475.0,0.01428]
[1771071727449,0.014195,70483.0,70475.0,0.01428]
[1771071727758,0.47772452,70484.0,70475.0,0.01428]
[1771071729542,0.01428,70484.0,70475.0,0.01428]
[1771071729848,0.028475,70484.0,70475.0,0.01428]
[1771071730749,0.014195,70483.0,70475.0,0.01428]
[1771071730950,0.028475,70484.0,70475.0,0.01428]
[1771071732144,0.04267,70484.0,70475.0,0.01428]
[1771071732346,0.028475,70484.0,70475.0,0.01428]
[1771071732850,0.01428,70484.0,70475.0,0.01428]
[1771071734448,0.46352952,70484.0,70473.0,0.014197]
[1771071734651,0.01428,70484.0,70473.0,0.014197]
[1771071735351,0.01428,70484.0,70474.0,0.01428]
[1771071735945,0.44924952,70486.0,70475.0,0.014197]
[1771071736145,0.01428,70485.0,70475.0,0.014197]
[1771071736755,0.028475,70485.0,70474.0,0.028477]
[1771071737455,0.47772452,70485.0,70474.0,0.028477]
[1771071738655,0.01428,70484.0,70474.0,0.028477]
[1771071738854,0.01428,70484.0,70474.0,0.042674]
[1771071739051,0.01428,70484.0,70477.0,0.014196]
[1771071739251,0.01428,70484.0,70475.0,0.014197]
[1771071740256,0.01428,70484.0,70474.0,0.028477]
[1771071740754,0.01428,70484.0,70475.0,0.014197]
[1771071741155,0.46352952,70484.0,70475.0,0.014197]
[1771071741556,0.01428,70484.0,70475.0,0.014197]
[1771071743557,0.01428,70484.0,70474.0,0.028477]
[1771071743959,0.01428,70484.0,70475.0,0.014197]
[1771071744256,0.01428,70484.0,70474.0,0.028477]
[1771071745758,0.44924952,70483.0,70470.0,0.014198]
[1771071746064,0.01428,70484.0,70470.0,0.44318948]
[1771071746264,0.01428,70483.0,70472.0,0.014197]
[1771071746560,0.01428,70482.0,70475.0,0.014197]
[1771071746958,0.01428,70482.0,70474.0,0.014197]
[1771071746959,0.01428,70482.0,70476.0,0.014197]
[1771071748162,0.01428,70482.0,70475.0,0.014197]
[1771071749859,0.142,70490.0,70482.0,0.014195]
[1771071750065,0.01428,70489.0,70485.0,0.014195]
[1771071750268,0.01428,70489.0,70485.0,0.02839]
[1771071750567,0.014192,70500.0,70453.0,0.003]
[1771071750568,0.01428,70492.0,70488.0,0.014194]
[1771071750755,0.142,70497.0,70487.0,0.01428]
[1771071750957,0.46343952,70507.0,70494.0,0.014193]
[1771071751172,0.014191,70504.0,70495.0,0.014193]
[1771071752360,0.014191,70505.0,70495.0,0.014193]
[1771071752568,0.014191,70504.0,70495.0,0.014193]
[1771071753067,0.42470423,70504.0,70491.0,0.01428]
[1771071753261,0.014193,70496.0,70491.0,0.01428]
[1771071753568,0.014193,70496.0,70487.0,0.014194]
[1771071753569,0.014192,70497.0,70488.0,0.014194]
[1771071753958,0.014192,70497.0,70487.0,0.014194]
[1771071754163,0.014192,70498.0,70488.0,0.014194]
[1771071754363,0.014192,70498.0,70489.0,0.014194]
[1771071754564,0.028472,70499.0,70489.0,0.014194]
[1771071754765,0.028472,70499.0,70490.0,0.014194]
[1771071755359,0.028472,70499.0,70489.0,0.014194]
[1771071756467,0.014192,70498.0,70488.0,0.028474]
[1771071757566,0.014192,70498.0,70489.0,0.014194]
[1771071757762,0.028472,70499.0,70489.0,0.014194]
[1771071757970,0.01428,70499.0,70491.0,0.014193]
[1771071758162,0.01428,70499.0,70493.0,0.014193]
[1771071758362,0.01424,70500.0,70494.0,0.014193]
[1771071758764,0.01424,70500.0,70495.0,0.014193]
[1771071758967,0.01424,70501.0,70494.0,0.014193]
[1771071759569,0.01424,70501.0,70493.0,0.014193]
[1771071760469,0.01424,70501.0,70494.0,0.014193]
[1771071761468,0.01424,70501.0,70493.0,0.014193]
[1771071761669,0.01424,70501.0,70494.0,0.014193]
[1771071762468,0.42470423,70509.0,70492.0,0.01424]
[1771071762769,0.42466423,70509.0,70506.0,0.01419]
[1771071762970,0.01424,70510.0,70506.0,0.01419]
[1771071763273,0.01424,70509.0,70500.0,0.01424]
[1771071763669,0.014189,70512.0,70501.0,0.014191]
[1771071763871,0.02843,70511.0,70500.0,0.028432]
[1771071764071,0.01419,70510.0,70500.0,0.028432]
[1771071764381,0.02843,70510.0,70500.0,0.01424]
[1771071764770,0.01419,70508.0,70500.0,0.01424]
[1771071765170,0.01419,70509.0,70500.0,0.01424]
[1771071765575,0.46445814,70509.0,70500.0,0.01424]
[1771071765877,0.01419,70511.0,70500.0,0.028432]
[1771071766077,0.01424,70510.0,70500.0,0.028432]
[1771071766276,0.01424,70510.0,70501.0,0.014191]
[1771071766478,0.01424,70509.0,70501.0,0.014191]
[1771071767174,0.01424,70509.0,70505.0,0.014191]
[1771071767878,0.014189,70516.0,70505.0,0.014191]
[1771071768069,0.014189,70516.0,70502.0,0.014191]
[1771071768070,0.01424,70515.0,70501.0,0.014191]
[1771071768470,0.028429,70515.0,70503.0,0.014191]
[1771071768876,0.028429,70515.0,70504.0,0.014191]
[1771071769081,0.01424,70515.0,70504.0,0.014191]
[1771071769283,0.01424,70515.0,70505.0,0.014191]
[1771071769776,0.01424,70515.0,70501.0,0.014191]
[1771071769777,0.01424,70515.0,70503.0,0.014191]
[1771071769981,0.028378,70514.0,70502.0,0.014191]
[1771071770985,0.014189,70513.0,70502.0,0.014191]
[1771071773686,0.014189,70514.0,70502.0,0.014191]
[1771071773987,0.014189,70516.0,70504.0,0.014191]
[1771071774188,0.014189,70515.0,70504.0,0.014191]
[1771071774386,0.01424,70514.0,70504.0,0.014191]
[1771071774980,0.01424,70514.0,70502.0,0.014191]
[1771071774981,0.014189,70514.0,70502.0,0.014191]
[1771071775287,0.01424,70513.0,70502.0,0.014191]
[1771071776689,0.01424,70513.0,70503.0,0.014191]
[1771071776891,0.01424,70513.0,70504.0,0.014191]
[1771071777084,0.01424,70512.0,70503.0,0.014191]
[1771071777289,0.01424,70512.0,70505.0,0.014191]
[1771071777779,0.01424,70512.0,70504.0,0.028431]
[1771071778384,0.01424,70513.0,70504.0,0.028431]
[1771071778580,0.01424,70513.0,70504.0,0.01424]
[1771071780292,0.46450814,70513.0,70503.0,0.01424]
[1771071780591,0.47869714,70513.0,70503.0,0.01424]
[1771071780790,0.01419,70507.0,70502.0,0.01424]
[1771071780990,0.01419,70509.0,70494.0,0.45840566]
[1771071781189,0.01419,70510.0,70498.0,0.014192]
[1771071781889,0.46033737,70510.0,70499.0,0.01424]
[1771071782086,0.46033737,70510.0,70499.0,0.028432]
[1771071782282,0.01419,70508.0,70497.0,0.014192]
[1771071782592,0.01419,70508.0,70498.0,0.01424]
[1771071782893,0.01419,70509.0,70496.0,0.14196]
[1771071782894,0.014191,70506.0,70499.0,0.01424]
[1771071783193,0.46033737,70507.0,70499.0,0.01424]
[1771071783383,0.014191,70506.0,70499.0,0.01424]
[1771071783587,0.46033737,70507.0,70499.0,0.01424]
[1771071784193,0.01419,70507.0,70498.0,0.01424]
[1771071784389,0.014191,70506.0,70498.0,0.01424]
[1771071784987,0.44614737,70508.0,70498.0,0.01424]
[1771071784988,0.01419,70507.0,70498.0,0.01424]
[1771071786186,0.01424,70509.0,70498.0,0.01424]
[1771071786491,0.01424,70509.0,70503.0,0.014191]
[1771071786691,0.46033737,70507.0,70495.0,0.028433]
[1771071786892,0.01419,70508.0,70495.0,0.01424]
[1771071787087,0.01419,70508.0,70496.0,0.014192]
[1771071787289,0.01419,70508.0,70498.0,0.014192]
[1771071787491,0.01419,70511.0,70499.0,0.014192]
[1771071787691,0.01424,70510.0,70500.0,0.014192]
[1771071787896,0.01424,70510.0,70498.0,0.014192]
[1771071787897,0.01419,70508.0,70498.0,0.014192]
[1771071788197,0.01419,70508.0,70499.0,0.01424]
[1771071788397,0.01419,70507.0,70499.0,0.01424]
[1771071789094,0.014191,70506.0,70499.0,0.01424]
[1771071789494,0.01419,70507.0,70499.0,0.01424]
[1771071789797,0.014191,70506.0,70499.0,0.01424]
[1771071790500,0.014191,70505.0,70498.0,0.01424]
[1771071791100,0.014191,70506.0,70498.0,0.01424]
[1771071791595,0.46038737,70508.0,70498.0,0.01424]
[1771071791802,0.014191,70503.0,70498.0,0.01424]
[1771071793899,0.014192,70500.0,70498.0,0.01424]
[1771071794099,0.014192,70500.0,70491.0,0.014193]
[1771071794296,0.014192,70500.0,70492.0,0.01424]
[1771071794901,0.028386,70496.0,70491.0,0.01424]
[1771071795105,0.014193,70494.0,70490.0,0.14196]
[1771071795304,0.014193,70494.0,70489.0,0.01424]
[1771071795502,0.014193,70495.0,70489.0,0.01424]
[1771071795698,0.014193,70494.0,70481.0,0.014195]
[1771071795903,0.46034037,70495.0,70482.0,0.028435]
[1771071796206,0.014194,70491.0,70483.0,0.01424]
[1771071796802,0.014193,70492.0,70483.0,0.028435]
[1771071797193,0.014194,70491.0,70483.0,0.028435]
[1771071797393,0.014193,70495.0,70486.0,0.014194]
[1771071797595,0.014193,70495.0,70485.0,0.014195]
[1771071797596,0.014193,70494.0,70485.0,0.014195]
[1771071797793,0.014193,70495.0,70485.0,0.014195]
[1771071798003,0.014193,70493.0,70485.0,0.014195]
[1771071798198,0.014193,70493.0,70484.0,0.014195]
[1771071798599,0.014193,70492.0,70483.0,0.028435]
[1771071799104,0.014194,70491.0,70483.0,0.028435]
[1771071801407,0.01424,70496.0,70483.0,0.01424]
[1771071801408,0.014193,70495.0,70483.0,0.01424]
[1771071801609,0.014193,70492.0,70483.0,0.01424]
[1771071801807,0.028389,70487.0,70483.0,0.01424]
[1771071802006,0.014194,70487.0,70483.0,0.01424]
[1771071802710,0.014194,70487.0,70483.0,0.00347304]
[1771071803009,0.014194,70487.0,70480.0,0.14196]
[1771071803010,0.014194,70487.0,70480.0,0.12767932]
[1771071803199,0.014196,70481.0,70480.0,0.12767932]
[1771071803404,0.014196,70481.0,70479.0,0.01424]
[1771071803806,0.01424,70488.0,70479.0,0.01424]
[1771071804108,0.014195,70484.0,70479.0,0.01424]
[1771071804810,0.014195,70482.0,70479.0,0.01424]
[1771071805010,0.014196,70481.0,70479.0,0.01424]
[1771071805211,0.014195,70482.0,70479.0,0.01424]
[1771071805504,0.014196,70481.0,70479.0,0.01424]
[1771071805710,0.014196,70480.0,70479.0,0.01424]
[1771071805905,0.014196,70481.0,70479.0,0.01424]
[1771071806913,0.014196,70481.0,70476.0,0.01424]
[1771071807612,0.014196,70480.0,70469.0,0.014198]
[1771071807816,0.014196,70480.0,70470.0,0.01424]
[1771071808301,0.014196,70479.0,70470.0,0.01424]
[1771071808504,0.014196,70479.0,70470.0,0.028438]
[1771071808707,0.014196,70479.0,70470.0,0.01424]
[1771071809016,0.01424,70484.0,70470.0,0.01424]
[1771071809017,0.014197,70476.0,70470.0,0.01424]
[1771071810601,0.014196,70477.0,70470.0,0.01424]
[1771071812311,0.014196,70478.0,70470.0,0.01424]
[1771071812613,0.01424,70479.0,70470.0,0.028438]
[1771071812808,0.028436,70479.0,70470.0,0.028438]
[1771071813206,0.014195,70484.0,70475.0,0.014197]
[1771071813411,0.01424,70483.0,70473.0,0.44402921]
[1771071813611,0.014195,70482.0,70473.0,0.44402921]
[1771071813820,0.01424,70481.0,70473.0,0.42983221]
[1771071814111,0.01424,70480.0,70470.0,0.028438]
[1771071814311,0.014196,70479.0,70470.0,0.028438]
[1771071814710,0.01424,70480.0,70470.0,0.01424]
[1771071814910,0.028393,70477.0,70470.0,0.01424]
[1771071815116,0.014197,70476.0,70470.0,0.01424]
[1771071815618,0.014197,70475.0,70470.0,0.01424]
[1771071816115,0.014197,70476.0,70470.0,0.01424]
[1771071816714,0.014196,70477.0,70470.0,0.01424]
[1771071817711,0.014198,70471.0,70468.0,0.113524]
[1771071818019,0.014198,70471.0,70467.0,0.00015455]
[1771071818720,0.014198,70470.0,70467.0,0.00015455]
[1771071818919,0.014198,70470.0,70465.0,0.01424]
[1771071819116,0.014198,70471.0,70465.0,0.01424]
[1771071819316,0.014197,70472.0,70465.0,0.01424]
[1771071819919,0.00014169,70471.0,70465.0,0.01424]
[1771071820112,0.01424,70475.0,70468.0,0.014198]
[1771071820316,0.014196,70477.0,70467.0,0.014198]
[1771071820516,0.01424,70476.0,70467.0,0.014198]
[1771071822016,0.028437,70476.0,70466.0,0.014199]
[1771071823525,0.028437,70476.0,70467.0,0.014198]
[1771071824919,0.014197,70475.0,70465.0,0.01424]
[1771071825129,0.014197,70473.0,70465.0,0.01424]
[1771071825322,0.014197,70472.0,70465.0,0.01424]
[1771071825918,0.014197,70473.0,70465.0,0.01424]
[1771071827123,0.014197,70474.0,70465.0,0.01424]
[1771071827325,0.014197,70475.0,70466.0,0.014199]
[1771071827527,0.01424,70476.0,70466.0,0.014198]
[1771071827828,0.01424,70476.0,70467.0,0.014198]
[1771071828817,0.014197,70475.0,70466.0,0.014198]
[1771071829422,0.014195,70482.0,70467.0,0.41373107]
[1771071829627,0.014196,70477.0,70468.0,0.42792907]
[1771071829824,0.028437,70476.0,70467.0,0.014198]
[1771071830129,0.028437,70476.0,70466.0,0.014198]
[1771071830329,0.014197,70475.0,70466.0,0.014198]
[1771071831425,0.01424,70476.0,70465.0,0.01424]
[1771071831724,0.014197,70472.0,70465.0,0.01424]
[1771071832634,0.014197,70476.0,70465.0,0.01424]
[1771071832932,0.014197,70474.0,70465.0,0.01424]
[1771071833232,0.014197,70473.0,70465.0,0.01424]
[1771071833419,0.45051689,70473.0,70465.0,0.01409831]
[1771071833734,0.014197,70472.0,70465.0,0.01409831]
[1771071833925,0.014197,70473.0,70465.0,0.01409831]
[1771071834235,0.01424,70475.0,70465.0,0.01409831]
[1771071834236,0.014198,70470.0,70465.0,0.01409831]
[1771071834532,0.014198,70472.0,70464.0,0.01424]
[1771071835026,0.014198,70472.0,70462.0,0.014199]
[1771071835231,0.01424,70475.0,70464.0,0.014199]
[1771071835426,0.01424,70475.0,70469.0,0.014198]
[1771071835628,0.01424,70476.0,70469.0,0.014198]
[1771071836634,0.014195,70483.0,70473.0,0.014197]
[1771071836833,0.014196,70481.0,70472.0,0.014197]
[1771071837130,0.014196,70481.0,70471.0,0.014197]
[1771071837131,0.014196,70480.0,70471.0,0.014198]
[1771071838128,0.014197,70474.0,70467.0,0.01424]
[1771071838332,0.014197,70475.0,70467.0,0.01424]
[1771071838731,0.014197,70474.0,70467.0,0.01424]
[1771071839124,0.014197,70475.0,70467.0,0.01424]
[1771071841135,0.44559615,70477.0,70468.0,0.01424]
[1771071841433,0.014197,70473.0,70467.0,0.01424]
[1771071841834,0.028394,70473.0,70467.0,0.01424]
[1771071842035,0.014197,70472.0,70467.0,0.01424]
[1771071842339,0.014197,70472.0,70464.0,0.014199]
[1771071842530,0.014197,70472.0,70465.0,0.01424]
[1771071843939,0.014197,70473.0,70465.0,0.01424]
[1771071844338,0.01424,70477.0,70468.0,0.014198]
[1771071844532,0.014197,70476.0,70467.0,0.014198]
[1771071847233,0.014197,70476.0,70466.0,0.014199]
[1771071847435,0.44555315,70473.0,70453.0,0.41377216]
[1771071847645,0.014199,70465.0,70454.0,0.15624]
[1771071847844,0.014199,70465.0,70456.0,0.014201]
[1771071848146,0.028398,70465.0,70456.0,0.014201]
[1771071848351,0.014199,70464.0,70456.0,0.014201]
[1771071849148,0.014199,70464.0,70457.0,3.9e-05]
[1771071850048,0.014199,70462.0,70457.0,3.9e-05]
[1771071851147,0.014199,70463.0,70457.0,3.9e-05]
[1771071851941,0.44559615,70468.0,70457.0,3.9e-05]
[1771071852152,0.0142,70462.0,70457.0,3.9e-05]
[1771071852750,0.0142,70460.0,70457.0,3.9e-05]
[1771071852949,0.0142,70458.0,70454.0,0.056927]
[1771071853548,0.0142,70457.0,70454.0,0.056927]
[1771071854154,0.014201,70456.0,70454.0,0.056927]
[1771071854552,0.0142,70457.0,70454.0,0.056927]
[1771071855053,0.44555615,70457.0,70445.0,0.014203]
[1771071855252,0.014202,70452.0,70446.0,0.01424]
[1771071856358,0.014202,70450.0,70446.0,0.01424]
[1771071856558,0.014202,70451.0,70446.0,0.01424]
[1771071856755,0.014202,70448.0,70443.0,0.01424]
[1771071856959,0.014202,70449.0,70443.0,0.01424]
[1771071857152,0.014202,70448.0,70443.0,0.01424]
[1771071857348,0.014203,70445.0,70443.0,0.01424]
[1771071857554,0.014202,70450.0,70442.0,0.01424]